Workbook

Sheet BinResultsYear
C1: 1 | D1: =C1+1 -> 2 | E1: 3 | F1: 4 | G1: 5 | H1: 6 | I1: 7 | J1: 8 | K1: 9 | L1: 10 | M1: 11 | N1: 12 | O1: 13 | P1: 14 | Q1: 15 | R1: 16 | S1: 17 | T1: 18 | U1: 19 | V1: 20 | W1: 21 | X1: 22 | Y1: 23 | Z1: 24 | AA1: 25 | AB1: 26 | AC1: 27 | AD1: 28 | AE1: 29 | AF1: 30 | AG1: 31 | AH1: 32 | AI1: 33 | AJ1: 34 | AK1: 35 | AL1: 36 | AM1: 37 | AN1: 38 | AO1: 39 | AP1: 40 | AQ1: 41 | AR1: 42 | AS1: 43 | AT1: 44 | AU1: 45 | AV1: 46 | AW1: 47 | AX1: 48 | AY1: 49 | AZ1: 50 | BA1: 51 | BB1: 52 | BC1: 53 | BD1: 54 | BE1: 55 | BF1: 56 | BG1: 57 | BH1: 58 | BI1: 59 | BJ1: 60 | BK1: 61 | BL1: 62 | BM1: 63 | BN1: 64 | BO1: 65 | BP1: =BO1+1 -> 66 | BQ1: 67 | BR1: 68
A2: Year | B2: Count | C2: ODA Temperature (°C) | D2: EL 007 (kW) | E2: GHE EFT (°C) | F2: GHE ExFT (°C) | G2: Clg Provided (kW) | H2: Bldg Htg Provided (kW) | I2: EL 003 (kW) | J2: CP Energy (kW) | K2: DHW Provided by HP (kW) | L2: DHW by LPS (kW) | M2: Useful Bldg Htg by LPS (kW) | N2: Bldg Htg Uncertainty (kW) | O2: Bldg Clg Uncertainty (kW) | P2: DHW Htg by HP Uncertainty (kW) | Q2: Bldg + DHW Htg by HP Uncertainty (kW) | R2: EL007+EL011 Uncertainty (kW) | S2: EL011 Uncertainty (kW) | T2: LPS DHW Uncertainty (kW) | U2: CP Power for Heat Extraction from GHE (kW) | V2: CP Power for Heat Rejection to GHE (kW) | W2: Heat Extraction by GHE (kW) | X2: Heat Rejection to GHE (kW) | Y2: EL007 Uncertainty (kW) | Z2: LPS Electricity going to bldg heat (kW) | AA2: Alt Calc GHE Heat Extraction (kW) | AB2: Alt Calc GHE Heat Extraction (kW) | AC2: HtgFrac | AD2: COP H4 | AE2: COP H3 | AF2: COP H2 | AG2: COP C3 | AH2: COP C2 | AI2: Overall (H+C) COP | AJ2: Not used | AK2: Not used | AL2: Not used | AM2: Not used | AN2: Error COP H4 | AO2: Error COP H3 | AP2: Error COP H2 | AQ2: Error COP H3b | AR2: Error COP C2 | AS2: BPF0, heating | AT2: BPF0, cooling | AU2: BPF1*, heating | AV2: BPF2, heating | AW2: BPF3+, heating | AX2: BPF4+, heating | AY2: BPF2, cooling | AZ2: BPF3, cooling | BA2: BPF4, cooling | BB2: Error BPF0, heating | BC2: Error BPF0, cooling | BD2: Error BPF1*, heating | BE2: Error BPF2, heating | BF2: Error BPF3+, heating | BG2: Error BPF4+, heating | BH2: Error BPF2, cooling | BI2: Error BPF3, cooling | BJ2: Error BPF4, cooling | BK2: Htg & Clg Provided Boundary 2 | BL2: Htg & Clg Provided Boundary 4+ | BM2: Electricity Used Boundary 2 | BN2: Electricity Used Boundary 4+ | BO2: BPFHC2 | BP2: BPFHC4+ | BQ2: Error BPFHC2 | BR2: Error BPFHC4+
A3: 2016 | B3: 8783 | C3: 7.951326976 | D3: 9.488618923 | E3: 9.495383126 | F3: 9.997278834 | G3: 12.69052087 | H3: 22.9084026 | I3: 12.92833884 | J3: 1.013964387 | K3: 1.792720586 | L3: 0.1969520507 | M3: 1.685395129 | N3: 1.157124898 | O3: 0.697978648 | P3: 0.1389691928 | Q3: 1.220111031 | R3: 0.1400640397 | S3: 0.19 | T3: 0.05657016967 | U3: 0.5360519542 | V3: 0.477912433 | W3: 17.21463924 | X3: 1.150346259 | Y3: 0.09488618923 | Z3: 2.790616564 | AA3: 13.95186562 | AB3: 9.456278005 | AC3: 0.6606054322 | AD3: 1.474471657 | AE3: 2.616882711 | AF3: 3.444642889 | AG3: 2.892223396 | AH3: 36.87668376 | AI3: 3.7394601 | AJ3: 0 | AK3: 0 | AL3: 0 | AM3: 0 | AN3: 0.06863694753 | AO3: 0.125410525 | AP3: 0.2026292158 | AQ3: 0.1255341033 | AR3: 7.201583334 | AS3: 32.11375147 | AT3: 2.407023086 | AU3: 3.799558842 | AV3: 3.444642889 | AW3: 2.616882711 | AX3: 1.474471657 | AY3: 36.87668376 | AZ3: 36.87668376 | BA3: 2.892223396 | BB3: 0 | BC3: 0 | BD3: 0.2303375976 | BE3: 0.2026292158 | BF3: 0.125410525 | BG3: 0.06863694753 | BH3: 7.201583334 | BI3: 7.201583334 | BJ3: 0.1646532412 | BK3: 37.39164405 | BL3: 39.27399123 | BM3: 7.515014696 | BN3: 22.41695776 | BO3: 4.975591608 | BP3: 1.751976859 | BQ3: 0.189986043 | BR3: 0.277669426
A4: 2017 | B4: 8760 | C4: 7.774096486 | D4: 9.378421696 | E4: 9.421165858 | F4: 9.91817336 | G4: 13.02624498 | H4: 22.62276585 | I4: 13.3534285 | J4: 1.014728465 | K4: 1.917684336 | L4: 0.2105706455 | M4: 1.86017775 | N4: 1.154648809 | O4: 0.7164434737 | P4: 0.1486107644 | Q4: 1.216114485 | R4: 0.1360547882 | S4: 0.19 | T4: 0.06048181322 | U4: 0.5826479523 | V4: 0.432080513 | W4: 16.93192804 | X4: 1.084777837 | Y4: 0.09378421696 | Z4: 2.777548493 | AA4: 11.63391606 | AB4: 7.524741868 | AC4: 0.6532501749 | AD4: 1.470105976 | AE4: 2.65017642 | AF4: 3.479348421 | AG4: 2.813262165 | AH4: 37.02142637 | AI4: 3.813804568 | AJ4: 0 | AK4: 0 | AL4: 0 | AM4: 0 | AN4: 0.06808549153 | AO4: 0.1263225525 | AP4: 0.2063175227 | AQ4: 0.1264660726 | AR4: 7.224837834 | AS4: 29.06030644 | AT4: 2.510591902 | AU4: 3.840264208 | AV4: 3.479348421 | AW4: 2.65017642 | AX4: 1.470105976 | AY4: 37.02142637 | AZ4: 37.02142637 | BA4: 2.813262165 | BB4: 0 | BC4: 0 | BD4: 0.2348610207 | BE4: 0.2063175227 | BF4: 0.1263225525 | BG4: 0.06808549153 | BH4: 7.224837834 | BI4: 7.224837834 | BJ4: 0.1598232978 | BK4: 37.56669516 | BL4: 39.63744356 | BM4: 7.405031022 | BN4: 22.73185019 | BO4: 5.073131368 | BP4: 1.743696322 | BQ4: 0.1943127571 | BR4: 0.298905571
A5: 2018 | B5: 8760 | C5: 10.00680566 | D5: 10.00924657 | E5: 9.611405698 | F5: 10.16116113 | G5: 18.37945967 | H5: 24.46890724 | I5: 13.78039364 | J5: 0.9852620209 | K5: 2.168934955 | L5: 0.2379602539 | M5: 1.744098781 | N5: 1.238454406 | O5: 1.010870282 | P5: 0.1679937053 | Q5: 1.311324171 | R5: 0.1393160034 | S5: 0.19 | T5: 0.06834887929 | U5: 0.5424320955 | V5: 0.4428299254 | W5: 18.13071749 | X5: 1.087457131 | Y5: 0.1000924657 | Z5: 2.738455867 | AA5: 12.94740129 | AB5: 12.70711124 | AC5: 0.591724539 | AD5: 1.575686956 | AE5: 2.701966103 | AF5: 3.497691994 | AG5: 3.266764583 | AH5: 45.69069031 | AI5: 4.274803235 | AJ5: 0 | AK5: 0 | AL5: 0 | AM5: 0 | AN5: 0.07320038889 | AO5: 0.128800122 | AP5: 0.2031338254 | AQ5: 0.1289616574 | AR5: 9.162444782 | AS5: 33.42486117 | AT5: 2.455699284 | AU5: 3.787641744 | AV5: 3.497691994 | AW5: 2.701966103 | AX5: 1.575686956 | AY5: 45.69069031 | AZ5: 45.69069031 | BA5: 3.266764583 | BB5: 0 | BC5: 0 | BD5: 0.2250098513 | BE5: 0.2031338254 | BF5: 0.128800122 | BG5: 0.07320038889 | BH5: 9.162444782 | BI5: 9.162444782 | BJ5: 0.1852316245 | BK5: 45.01730187 | BL5: 46.9993609 | BM5: 8.018092473 | BN5: 23.78964021 | BO5: 5.614465288 | BP5: 1.975623023 | BQ5: 0.2103146319 | BR5: 0.2875840694
A6: 2019 | B6: 8760 | C6: 11.02910027 | D6: 9.726916515 | E6: 9.449834467 | F6: 9.982531766 | G6: 14.16303189 | H6: 24.19786873 | I6: 13.43261718 | J6: 1.015641053 | K6: 2.178314475 | L6: 0.2363186041 | M6: 1.881593894 | N6: 1.232209719 | O6: 0.7789667541 | P6: 0.1676227271 | Q6: 1.301311595 | R6: 0.1416350489 | S6: 0.19 | T6: 0.0678773513 | U6: 0.6030710637 | V6: 0.4125699895 | W6: 18.09730118 | X6: 0.9911606628 | Y6: 0.09726916515 | Z6: 2.698412933 | AA6: 12.77744984 | AB6: 8.372124557 | AC6: 0.6506337911 | AD6: 1.54300454 | AE6: 2.743053988 | AF6: 3.539004374 | AG6: 3.01796847 | AH6: 39.91490397 | AI6: 3.970853992 | AJ6: 0 | AK6: 0 | AL6: 0 | AM6: 0 | AN6: 0.07145511202 | AO6: 0.1307379303 | AP6: 0.2067852957 | AQ6: 0.130901125 | AR6: 7.783065333 | AS6: 30.00857158 | AT6: 2.402406108 | AU6: 3.883313439 | AV6: 3.539004374 | AW6: 2.743053988 | AX6: 1.54300454 | AY6: 39.91490397 | AZ6: 39.91490397 | BA6: 3.01796847 | BB6: 0 | BC6: 0 | BD6: 0.2331960626 | BE6: 0.2067852957 | BF6: 0.1307379303 | BG6: 0.07145511202 | BH6: 7.783065333 | BI6: 7.783065333 | BJ6: 0.1713895717 | BK6: 40.5392151 | BL6: 42.6571276 | BM6: 7.807826032 | BN6: 23.15953369 | BO6: 5.192125815 | BP6: 1.841881973 | BQ6: 0.1972715798 | BR6: 0.2942140297
A7: 2020 | B7: 8784 | C7: 10.0701073 | D7: 8.595545486 | E7: 9.554199791 | F7: 9.889932325 | G7: 10.66908134 | H7: 22.07987206 | I7: 11.16830992 | J7: 0.9953168018 | K7: 0.8142418775 | L7: 0.08640390989 | M7: 2.139878272 | N7: 1.132385487 | O7: 0.586799474 | P7: 0.0618701593 | Q7: 1.146372222 | R7: 0.1387935986 | S7: 0.19 | T7: 0.02481763366 | U7: 0.5957511204 | V7: 0.3995656815 | W7: 15.89101582 | X7: 1.04322976 | Y7: 0.08595545486 | Z7: 2.876118003 | AA7: 12.16369619 | AB7: 6.56700398 | AC7: 0.6821196177 | AD7: 1.549334482 | AE7: 2.708553102 | AF7: 3.627107104 | AG7: 3.00521704 | AH7: 33.72111796 | AI7: 3.731622495 | AJ7: 0 | AK7: 0 | AL7: 0 | AM7: 0 | AN7: 0.07193722631 | AO7: 0.1300815965 | AP7: 0.2210264162 | AQ7: 0.1301091166 | AR7: 6.699013656 | AS7: 26.67391681 | AT7: 2.610909315 | AU7: 4.064267376 | AV7: 3.627107104 | AW7: 2.708553102 | AX7: 1.549334482 | AY7: 33.72111796 | AZ7: 33.72111796 | BA7: 3.00521704 | BB7: 0 | BC7: 0 | BD7: 0.2576930488 | BE7: 0.2210264162 | BF7: 0.1300815965 | BG7: 0.07193722631 | BH7: 6.699013656 | BI7: 6.699013656 | BJ7: 0.1730134143 | BK7: 33.56319528 | BL7: 35.78947746 | BM7: 6.628340375 | BN7: 19.76385541 | BO7: 5.063589584 | BP7: 1.810855055 | BQ7: 0.203073431 | BR7: 0.3546146659
A8: 2021 | B8: 3144 | C8: 3.092106741 | D8: 15.43436628 | E8: 7.244846945 | F8: 8.293510901 | G8: 7.675774989 | H8: 47.66706523 | I8: 11.12651992 | J8: 1.009054301 | K8: 0.6250311752 | L8: 0.06371033008 | M8: 2.912286216 | N8: 2.412284936 | O8: 0.4221676244 | P8: 0.04641069355 | Q8: 2.415287775 | R8: 0.2219345662 | S8: 0.19 | T8: 0.01829939912 | U8: 0.9425758193 | V8: 0.06647848133 | W8: 33.62412598 | X8: 0.2116914906 | Y8: 0.1543436628 | Z8: 2.936283547 | AA8: 27.95711893 | AB8: 0.7842242136 | AC8: 0.8628539053 | AD8: 2.047862654 | AE8: 3.144310952 | AF8: 3.629609577 | AG8: 5.030132676 | AH8: 55.46566856 | AI8: 3.58464759 | AJ8: 0 | AK8: 0 | AL8: 0 | AM8: 0 | AN8: 0.09816993785 | AO8: 0.1541902502 | AP8: 0.194242677 | AQ8: 0.1541943347 | AR8: 10.88033024 | AS8: 35.67259555 | AT8: 3.184361109 | AU8: 3.883758251 | AV8: 3.629609577 | AW8: 3.144310952 | AX8: 2.047862654 | AY8: 55.46566856 | AZ8: 55.46566856 | BA8: 5.030132676 | BB8: 0 | BC8: 0 | BD8: 0.2097360298 | BE8: 0.194242677 | BF8: 0.1541902502 | BG8: 0.09816993785 | BH8: 10.88033024 | BI8: 10.88033024 | BJ8: 0.2896850159 | BK8: 55.9678714 | BL8: 58.94386794 | BM8: 13.4434267 | BN8: 26.56088619 | BO8: 4.16321468 | BP8: 2.219198091 | BQ8: 0.1848260736 | BR8: 0.2704614636
AU10: =AVERAGE(AU3:AU7) -> 3.875009122 | AV10: =AVERAGE(AV3:AV7) -> 3.517558957 | AW10: 2.684126465 | AX10: 1.522520722 | AY10: 38.64496447 | AZ10: 38.64496447 | BA10: 2.999087131 | BK10: =SUM(BK3:BK7) -> 194.0780515 | BL10: =SUM(BL3:BL7) -> 204.3574008 | BM10: 37.3743046 | BN10: 111.8618373 | BO10: =AVERAGE(BO3:BO7) -> 5.183780733 | BP10: 1.824806646 | BQ10: Raw average
BO11: =BK10/BM10 -> 5.192820403 | BP11: =BL10/BN10 -> 1.826873273
AY59: =CELL("filename") -> D:\Dropbox\Gehlin-Spitler_collaboration\Studenthuset\studenthuset data detailed excel files\2021_update\20211208_Results\[BinResultsYear_V3.xlsm]BinResultsYear

Sheet Elec.
C2: 1 | D2: =C2+1 -> 2 | E2: 3 | F2: 4 | G2: 5 | H2: 6 | I2: 7 | J2: 8 | K2: 9 | L2: 10 | M2: 11 | N2: 12 | O2: 13 | P2: 14 | Q2: 15 | R2: 16 | S2: 17 | T2: 18 | U2: 19 | V2: 20 | W2: 21 | X2: 22 | Y2: 23 | Z2: 24 | AA2: 25 | AB2: 26 | AC2: 27 | AD2: 28 | AE2: 29 | AF2: 30 | AG2: 31 | AH2: 32 | AI2: 33 | AJ2: 34 | AK2: 35 | AL2: 36 | AM2: 37 | AN2: 38 | AO2: 39 | AP2: 40 | AQ2: 41 | AR2: 42 | AS2: 43 | AT2: 44 | AU2: 45 | AV2: 46 | AW2: 47 | AX2: 48 | AY2: 49 | AZ2: 50 | BA2: 51 | BB2: 52 | BC2: 53 | BD2: 54 | BE2: 55 | BF2: 56 | BG2: 57 | BH2: 58 | BI2: 59 | BJ2: 60 | BK2: 61 | BL2: 62 | BM2: 63 | BN2: 64 | BO2: 65 | BP2: =BO2+1 -> 66 | BQ2: 67 | BR2: 68
A3: Year | B3: Count | C3: ODA Temperature (°C) | D3: EL 007 (kW) | E3: GHE EFT (°C) | F3: GHE ExFT (°C) | G3: Clg Provided (kW) | H3: Bldg Htg Provided (kW) | I3: EL 003 (kW) | J3: CP Energy (kW) | K3: DHW Provided by HP (kW) | L3: DHW by LPS (kW) | M3: Useful Bldg Htg by LPS (kW) | N3: Bldg Htg Uncertainty (kW) | O3: Bldg Clg Uncertainty (kW) | P3: DHW Htg by HP Uncertainty (kW) | Q3: Bldg + DHW Htg by HP Uncertainty (kW) | R3: EL007+EL011 Uncertainty (kW) | S3: EL011 Uncertainty (kW) | T3: LPS DHW Uncertainty (kW) | U3: CP Power for Heat Extraction from GHE (kW) | V3: CP Power for Heat Rejection to GHE (kW) | W3: Heat Extraction by GHE (kW) | X3: Heat Rejection to GHE (kW) | Y3: EL007 Uncertainty (kW) | Z3: LPS Electricity going to bldg heat (kW) | AA3: Alt Calc GHE Heat Extraction (kW) | AB3: Alt Calc GHE Heat Extraction (kW) | AC3: HtgFrac | AD3: COP H4 | AE3: COP H3 | AF3: COP H2 | AG3: COP C3 | AH3: COP C2 | AI3: Overall (H+C) COP | AJ3: Not used | AK3: Not used | AL3: Not used | AM3: Not used | AN3: Error COP H4 | AO3: Error COP H3 | AP3: Error COP H2 | AQ3: Error COP H3b | AR3: Error COP C2 | AS3: BPF0, heating | AT3: BPF0, cooling | AU3: BPF1*, heating | AV3: BPF2, heating | AW3: BPF3+, heating | AX3: BPF4+, heating | AY3: BPF2, cooling | AZ3: BPF3, cooling | BA3: BPF4, cooling | BB3: Error BPF0, heating | BC3: Error BPF0, cooling | BD3: Error BPF1*, heating | BE3: Error BPF2, heating | BF3: Error BPF3+, heating | BG3: Error BPF4+, heating | BH3: Error BPF2, cooling | BI3: Error BPF3, cooling | BJ3: Error BPF4, cooling | BK3: Htg & Clg Provided Boundary 2 | BL3: Htg & Clg Provided Boundary 4+ | BM3: Electricity Used Boundary 2 | BN3: Electricity Used Boundary 4+ | BO3: BPFHC2 | BP3: BPFHC4+ | BQ3: Error BPFHC2 | BR3: Error BPFHC4+
A4: 2016 | B4: 8783 | C4: 7.951326976 | D4: 9.488618923 | E4: 9.495383126 | F4: 9.997278834 | G4: 12.69052087 | H4: 22.9084026 | I4: 12.92833884 | J4: 1.013964387 | K4: 1.792720586 | L4: 0.1969520507 | M4: 1.685395129 | N4: 1.157124898 | O4: 0.697978648 | P4: 0.1389691928 | Q4: 1.220111031 | R4: 0.1400640397 | S4: 0.19 | T4: 0.05657016967 | U4: 0.5360519542 | V4: 0.477912433 | W4: 17.21463924 | X4: 1.150346259 | Y4: 0.09488618923 | Z4: 2.790616564 | AA4: 13.95186562 | AB4: 9.456278005 | AC4: 0.6606054322 | AD4: 1.474471657 | AE4: 2.616882711 | AF4: 3.444642889 | AG4: 2.892223396 | AH4: 36.87668376 | AI4: 3.7394601 | AJ4: 0 | AK4: 0 | AL4: 0 | AM4: 0 | AN4: 0.06863694753 | AO4: 0.125410525 | AP4: 0.2026292158 | AQ4: 0.1255341033 | AR4: 7.201583334 | AS4: 32.11375147 | AT4: 2.407023086 | AU4: 3.799558842 | AV4: 3.444642889 | AW4: 2.616882711 | AX4: 1.474471657 | AY4: 36.87668376 | AZ4: 36.87668376 | BA4: 2.892223396 | BB4: 0 | BC4: 0 | BD4: 0.2303375976 | BE4: 0.2026292158 | BF4: 0.125410525 | BG4: 0.06863694753 | BH4: 7.201583334 | BI4: 7.201583334 | BJ4: 0.1646532412 | BK4: 37.39164405 | BL4: 39.27399123 | BM4: 7.515014696 | BN4: 22.41695776 | BO4: 4.975591608 | BP4: 1.751976859 | BQ4: 0.189986043 | BR4: 0.277669426
A5: 2017 | B5: 8760 | C5: 7.774096486 | D5: 9.378421696 | E5: 9.421165858 | F5: 9.91817336 | G5: 13.02624498 | H5: 22.62276585 | I5: 13.3534285 | J5: 1.014728465 | K5: 1.917684336 | L5: 0.2105706455 | M5: 1.86017775 | N5: 1.154648809 | O5: 0.7164434737 | P5: 0.1486107644 | Q5: 1.216114485 | R5: 0.1360547882 | S5: 0.19 | T5: 0.06048181322 | U5: 0.5826479523 | V5: 0.432080513 | W5: 16.93192804 | X5: 1.084777837 | Y5: 0.09378421696 | Z5: 2.777548493 | AA5: 11.63391606 | AB5: 7.524741868 | AC5: 0.6532501749 | AD5: 1.470105976 | AE5: 2.65017642 | AF5: 3.479348421 | AG5: 2.813262165 | AH5: 37.02142637 | AI5: 3.813804568 | AJ5: 0 | AK5: 0 | AL5: 0 | AM5: 0 | AN5: 0.06808549153 | AO5: 0.1263225525 | AP5: 0.2063175227 | AQ5: 0.1264660726 | AR5: 7.224837834 | AS5: 29.06030644 | AT5: 2.510591902 | AU5: 3.840264208 | AV5: 3.479348421 | AW5: 2.65017642 | AX5: 1.470105976 | AY5: 37.02142637 | AZ5: 37.02142637 | BA5: 2.813262165 | BB5: 0 | BC5: 0 | BD5: 0.2348610207 | BE5: 0.2063175227 | BF5: 0.1263225525 | BG5: 0.06808549153 | BH5: 7.224837834 | BI5: 7.224837834 | BJ5: 0.1598232978 | BK5: 37.56669516 | BL5: 39.63744356 | BM5: 7.405031022 | BN5: 22.73185019 | BO5: 5.073131368 | BP5: 1.743696322 | BQ5: 0.1943127571 | BR5: 0.298905571
A6: 2018 | B6: 8760 | C6: 10.00680566 | D6: 10.00924657 | E6: 9.611405698 | F6: 10.16116113 | G6: 18.37945967 | H6: 24.46890724 | I6: 13.78039364 | J6: 0.9852620209 | K6: 2.168934955 | L6: 0.2379602539 | M6: 1.744098781 | N6: 1.238454406 | O6: 1.010870282 | P6: 0.1679937053 | Q6: 1.311324171 | R6: 0.1393160034 | S6: 0.19 | T6: 0.06834887929 | U6: 0.5424320955 | V6: 0.4428299254 | W6: 18.13071749 | X6: 1.087457131 | Y6: 0.1000924657 | Z6: 2.738455867 | AA6: 12.94740129 | AB6: 12.70711124 | AC6: 0.591724539 | AD6: 1.575686956 | AE6: 2.701966103 | AF6: 3.497691994 | AG6: 3.266764583 | AH6: 45.69069031 | AI6: 4.274803235 | AJ6: 0 | AK6: 0 | AL6: 0 | AM6: 0 | AN6: 0.07320038889 | AO6: 0.128800122 | AP6: 0.2031338254 | AQ6: 0.1289616574 | AR6: 9.162444782 | AS6: 33.42486117 | AT6: 2.455699284 | AU6: 3.787641744 | AV6: 3.497691994 | AW6: 2.701966103 | AX6: 1.575686956 | AY6: 45.69069031 | AZ6: 45.69069031 | BA6: 3.266764583 | BB6: 0 | BC6: 0 | BD6: 0.2250098513 | BE6: 0.2031338254 | BF6: 0.128800122 | BG6: 0.07320038889 | BH6: 9.162444782 | BI6: 9.162444782 | BJ6: 0.1852316245 | BK6: 45.01730187 | BL6: 46.9993609 | BM6: 8.018092473 | BN6: 23.78964021 | BO6: 5.614465288 | BP6: 1.975623023 | BQ6: 0.2103146319 | BR6: 0.2875840694
A7: 2019 | B7: 8760 | C7: 11.02910027 | D7: 9.726916515 | E7: 9.449834467 | F7: 9.982531766 | G7: 14.16303189 | H7: 24.19786873 | I7: 13.43261718 | J7: 1.015641053 | K7: 2.178314475 | L7: 0.2363186041 | M7: 1.881593894 | N7: 1.232209719 | O7: 0.7789667541 | P7: 0.1676227271 | Q7: 1.301311595 | R7: 0.1416350489 | S7: 0.19 | T7: 0.0678773513 | U7: 0.6030710637 | V7: 0.4125699895 | W7: 18.09730118 | X7: 0.9911606628 | Y7: 0.09726916515 | Z7: 2.698412933 | AA7: 12.77744984 | AB7: 8.372124557 | AC7: 0.6506337911 | AD7: 1.54300454 | AE7: 2.743053988 | AF7: 3.539004374 | AG7: 3.01796847 | AH7: 39.91490397 | AI7: 3.970853992 | AJ7: 0 | AK7: 0 | AL7: 0 | AM7: 0 | AN7: 0.07145511202 | AO7: 0.1307379303 | AP7: 0.2067852957 | AQ7: 0.130901125 | AR7: 7.783065333 | AS7: 30.00857158 | AT7: 2.402406108 | AU7: 3.883313439 | AV7: 3.539004374 | AW7: 2.743053988 | AX7: 1.54300454 | AY7: 39.91490397 | AZ7: 39.91490397 | BA7: 3.01796847 | BB7: 0 | BC7: 0 | BD7: 0.2331960626 | BE7: 0.2067852957 | BF7: 0.1307379303 | BG7: 0.07145511202 | BH7: 7.783065333 | BI7: 7.783065333 | BJ7: 0.1713895717 | BK7: 40.5392151 | BL7: 42.6571276 | BM7: 7.807826032 | BN7: 23.15953369 | BO7: 5.192125815 | BP7: 1.841881973 | BQ7: 0.1972715798 | BR7: 0.2942140297
A8: 2020 | B8: 8784 | C8: 10.0701073 | D8: 8.595545486 | E8: 9.554199791 | F8: 9.889932325 | G8: 10.66908134 | H8: 22.07987206 | I8: 11.16830992 | J8: 0.9953168018 | K8: 0.8142418775 | L8: 0.08640390989 | M8: 2.139878272 | N8: 1.132385487 | O8: 0.586799474 | P8: 0.0618701593 | Q8: 1.146372222 | R8: 0.1387935986 | S8: 0.19 | T8: 0.02481763366 | U8: 0.5957511204 | V8: 0.3995656815 | W8: 15.89101582 | X8: 1.04322976 | Y8: 0.08595545486 | Z8: 2.876118003 | AA8: 12.16369619 | AB8: 6.56700398 | AC8: 0.6821196177 | AD8: 1.549334482 | AE8: 2.708553102 | AF8: 3.627107104 | AG8: 3.00521704 | AH8: 33.72111796 | AI8: 3.731622495 | AJ8: 0 | AK8: 0 | AL8: 0 | AM8: 0 | AN8: 0.07193722631 | AO8: 0.1300815965 | AP8: 0.2210264162 | AQ8: 0.1301091166 | AR8: 6.699013656 | AS8: 26.67391681 | AT8: 2.610909315 | AU8: 4.064267376 | AV8: 3.627107104 | AW8: 2.708553102 | AX8: 1.549334482 | AY8: 33.72111796 | AZ8: 33.72111796 | BA8: 3.00521704 | BB8: 0 | BC8: 0 | BD8: 0.2576930488 | BE8: 0.2210264162 | BF8: 0.1300815965 | BG8: 0.07193722631 | BH8: 6.699013656 | BI8: 6.699013656 | BJ8: 0.1730134143 | BK8: 33.56319528 | BL8: 35.78947746 | BM8: 6.628340375 | BN8: 19.76385541 | BO8: 5.063589584 | BP8: 1.810855055 | BQ8: 0.203073431 | BR8: 0.3546146659
A12: Year | B12: HP Elec. (kWh) | C12: CP Elec. for Htg (kWh) | D12: Elec. Resistance Heating (kWh) | E12: Distribution CP Elec. For Htg (kWh) | S12: Year | T12: CP Elec. for Clg (kWh) | U12: Distribution CP Elec. For Clg (kWh)
A13: 2016 | B13: =B4*I4-D13 -> 87309.78486 | C13: =U4*B4 -> 4708.144314 | D13: =(Z4+L4)*B4 -> 26239.81514 | E13: =(B4*(D4-J4))*C21 -> 49170.77199 | S13: 2016 | T13: =B4*V4 -> 4197.504899 | U13: =(B4*(D4-J4))*B21 -> 25262.1188
A14: 2017 | B14: =B5*I5-D14 -> 90800.10996 | C14: =U5*B5 -> 5103.996062 | D14: =(Z5+L5)*B5 -> 26175.92365 | E14: =(B5*(D5-J5))*C22 -> 47860.99642 | S14: 2017 | T14: =B5*V5 -> 3785.025294 | U14: =(B5*(D5-J5))*B22 -> 25404.95628
A15: 2018 | B15: 94642.84303 | C15: 4751.705157 | D15: 26073.40522 | E15: 46775.88675 | S15: 2018 | T15: 3879.190146 | U15: 32274.21793
A16: 2019 | B16: 91961.4782 | C16: 5282.902518 | D16: 25708.24826 | E16: 49650.36757 | S16: 2019 | T16: 3614.113108 | U16: 26660.40548
A17: 2020 | B17: 72079.64186 | C17: 5233.077841 | D17: 26022.79248 | E17: 45538.58451 | S17: 2020 | T17: 3509.784946 | U17: 21221.82426
A20: Year | B20: Clg fraction | C20: Htg fraction
A21: 2016 | B21: =G4/(G4+H4+K4) -> 0.3393945678 | C21: =1-B21 -> 0.6606054322
A22: 2017 | B22: =G5/(G5+H5+K5) -> 0.3467498251 | C22: =1-B22 -> 0.6532501749
A23: 2018 | B23: 0.408275461 | C23: 0.591724539
A24: 2019 | B24: 0.3493662089 | C24: 0.6506337911
A25: 2020 | B25: 0.3178803823 | C25: 0.6821196177
R30: =CELL("filename") -> D:\Dropbox\Gehlin-Spitler_collaboration\Studenthuset\studenthuset data detailed excel files\2021_update\20211208_Results\[BinResultsYear_V3.xlsm]BinResultsYear

Sheet GHELoads
A2: Year | B2: Count | C2: ODA Temperature (°C) | D2: EL 007 (kW) | E2: GHE EFT (°C) | F2: GHE ExFT (°C) | G2: Clg Provided (kW) | H2: Bldg Htg Provided (kW) | I2: EL 003 (kW) | J2: CP Energy (kW) | K2: DHW Provided by HP (kW) | L2: DHW by LPS (kW) | M2: Useful Bldg Htg by LPS (kW) | N2: Bldg Htg Uncertainty (kW) | O2: Bldg Clg Uncertainty (kW) | P2: DHW Htg by HP Uncertainty (kW) | Q2: Bldg + DHW Htg by HP Uncertainty (kW) | R2: EL007+EL011 Uncertainty (kW) | S2: EL011 Uncertainty (kW) | T2: LPS DHW Uncertainty (kW) | U2: CP Power for Heat Extraction from GHE (kW) | V2: CP Power for Heat Rejection to GHE (kW) | W2: Heat Extraction by GHE (kW) | X2: Heat Rejection to GHE (kW) | Y2: EL007 Uncertainty (kW) | Z2: LPS Electricity going to bldg heat (kW) | AA2: Alt Calc GHE Heat Extraction (kW) | AB2: Alt Calc GHE Heat Extraction (kW) | AC2: HtgFrac | AD2: COP H4 | AE2: COP H3 | AF2: COP H2 | AG2: COP C3 | AH2: COP C2 | AI2: Overall (H+C) COP | AJ2: Not used | AK2: Not used | AL2: Not used | AM2: Not used | AN2: Error COP H4 | AO2: Error COP H3 | AP2: Error COP H2 | AQ2: Error COP H3b | AR2: Error COP C2 | AS2: BPF0, heating | AT2: BPF0, cooling | AU2: BPF1*, heating | AV2: BPF2, heating | AW2: BPF3+, heating | AX2: BPF4+, heating | AY2: BPF2, cooling | AZ2: BPF3, cooling | BA2: BPF4, cooling | BB2: Error BPF0, heating | BC2: Error BPF0, cooling | BD2: Error BPF1*, heating | BE2: Error BPF2, heating | BF2: Error BPF3+, heating | BG2: Error BPF4+, heating | BH2: Error BPF2, cooling | BI2: Error BPF3, cooling | BJ2: Error BPF4, cooling | BK2: Htg & Clg Provided Boundary 2 | BL2: Htg & Clg Provided Boundary 4+ | BM2: Electricity Used Boundary 2 | BN2: Electricity Used Boundary 4+ | BO2: BPFHC2 | BP2: BPFHC4+ | BQ2: Error BPFHC2 | BR2: Error BPFHC4+
A3: 2016 | B3: 8783 | C3: 7.951326976 | D3: 9.488618923 | E3: 9.495383126 | F3: 9.997278834 | G3: 12.69052087 | H3: 22.9084026 | I3: 12.92833884 | J3: 1.013964387 | K3: 1.792720586 | L3: 0.1969520507 | M3: 1.685395129 | N3: 1.157124898 | O3: 0.697978648 | P3: 0.1389691928 | Q3: 1.220111031 | R3: 0.1400640397 | S3: 0.19 | T3: 0.05657016967 | U3: 0.5360519542 | V3: 0.477912433 | W3: 17.21463924 | X3: 1.150346259 | Y3: 0.09488618923 | Z3: 2.790616564 | AA3: 13.95186562 | AB3: 9.456278005 | AC3: 0.6606054322 | AD3: 1.474471657 | AE3: 2.616882711 | AF3: 3.444642889 | AG3: 2.892223396 | AH3: 36.87668376 | AI3: 3.7394601 | AJ3: 0 | AK3: 0 | AL3: 0 | AM3: 0 | AN3: 0.06863694753 | AO3: 0.125410525 | AP3: 0.2026292158 | AQ3: 0.1255341033 | AR3: 7.201583334 | AS3: 32.11375147 | AT3: 2.407023086 | AU3: 3.799558842 | AV3: 3.444642889 | AW3: 2.616882711 | AX3: 1.474471657 | AY3: 36.87668376 | AZ3: 36.87668376 | BA3: 2.892223396 | BB3: 0 | BC3: 0 | BD3: 0.2303375976 | BE3: 0.2026292158 | BF3: 0.125410525 | BG3: 0.06863694753 | BH3: 7.201583334 | BI3: 7.201583334 | BJ3: 0.1646532412 | BK3: 37.39164405 | BL3: 39.27399123 | BM3: 7.515014696 | BN3: 22.41695776 | BO3: 4.975591608 | BP3: 1.751976859 | BQ3: 0.189986043 | BR3: 0.277669426
A4: 2017 | B4: 8760 | C4: 7.774096486 | D4: 9.378421696 | E4: 9.421165858 | F4: 9.91817336 | G4: 13.02624498 | H4: 22.62276585 | I4: 13.3534285 | J4: 1.014728465 | K4: 1.917684336 | L4: 0.2105706455 | M4: 1.86017775 | N4: 1.154648809 | O4: 0.7164434737 | P4: 0.1486107644 | Q4: 1.216114485 | R4: 0.1360547882 | S4: 0.19 | T4: 0.06048181322 | U4: 0.5826479523 | V4: 0.432080513 | W4: 16.93192804 | X4: 1.084777837 | Y4: 0.09378421696 | Z4: 2.777548493 | AA4: 11.63391606 | AB4: 7.524741868 | AC4: 0.6532501749 | AD4: 1.470105976 | AE4: 2.65017642 | AF4: 3.479348421 | AG4: 2.813262165 | AH4: 37.02142637 | AI4: 3.813804568 | AJ4: 0 | AK4: 0 | AL4: 0 | AM4: 0 | AN4: 0.06808549153 | AO4: 0.1263225525 | AP4: 0.2063175227 | AQ4: 0.1264660726 | AR4: 7.224837834 | AS4: 29.06030644 | AT4: 2.510591902 | AU4: 3.840264208 | AV4: 3.479348421 | AW4: 2.65017642 | AX4: 1.470105976 | AY4: 37.02142637 | AZ4: 37.02142637 | BA4: 2.813262165 | BB4: 0 | BC4: 0 | BD4: 0.2348610207 | BE4: 0.2063175227 | BF4: 0.1263225525 | BG4: 0.06808549153 | BH4: 7.224837834 | BI4: 7.224837834 | BJ4: 0.1598232978 | BK4: 37.56669516 | BL4: 39.63744356 | BM4: 7.405031022 | BN4: 22.73185019 | BO4: 5.073131368 | BP4: 1.743696322 | BQ4: 0.1943127571 | BR4: 0.298905571
A5: 2018 | B5: 8760 | C5: 10.00680566 | D5: 10.00924657 | E5: 9.611405698 | F5: 10.16116113 | G5: 18.37945967 | H5: 24.46890724 | I5: 13.78039364 | J5: 0.9852620209 | K5: 2.168934955 | L5: 0.2379602539 | M5: 1.744098781 | N5: 1.238454406 | O5: 1.010870282 | P5: 0.1679937053 | Q5: 1.311324171 | R5: 0.1393160034 | S5: 0.19 | T5: 0.06834887929 | U5: 0.5424320955 | V5: 0.4428299254 | W5: 18.13071749 | X5: 1.087457131 | Y5: 0.1000924657 | Z5: 2.738455867 | AA5: 12.94740129 | AB5: 12.70711124 | AC5: 0.591724539 | AD5: 1.575686956 | AE5: 2.701966103 | AF5: 3.497691994 | AG5: 3.266764583 | AH5: 45.69069031 | AI5: 4.274803235 | AJ5: 0 | AK5: 0 | AL5: 0 | AM5: 0 | AN5: 0.07320038889 | AO5: 0.128800122 | AP5: 0.2031338254 | AQ5: 0.1289616574 | AR5: 9.162444782 | AS5: 33.42486117 | AT5: 2.455699284 | AU5: 3.787641744 | AV5: 3.497691994 | AW5: 2.701966103 | AX5: 1.575686956 | AY5: 45.69069031 | AZ5: 45.69069031 | BA5: 3.266764583 | BB5: 0 | BC5: 0 | BD5: 0.2250098513 | BE5: 0.2031338254 | BF5: 0.128800122 | BG5: 0.07320038889 | BH5: 9.162444782 | BI5: 9.162444782 | BJ5: 0.1852316245 | BK5: 45.01730187 | BL5: 46.9993609 | BM5: 8.018092473 | BN5: 23.78964021 | BO5: 5.614465288 | BP5: 1.975623023 | BQ5: 0.2103146319 | BR5: 0.2875840694
A6: 2019 | B6: 8760 | C6: 11.02910027 | D6: 9.726916515 | E6: 9.449834467 | F6: 9.982531766 | G6: 14.16303189 | H6: 24.19786873 | I6: 13.43261718 | J6: 1.015641053 | K6: 2.178314475 | L6: 0.2363186041 | M6: 1.881593894 | N6: 1.232209719 | O6: 0.7789667541 | P6: 0.1676227271 | Q6: 1.301311595 | R6: 0.1416350489 | S6: 0.19 | T6: 0.0678773513 | U6: 0.6030710637 | V6: 0.4125699895 | W6: 18.09730118 | X6: 0.9911606628 | Y6: 0.09726916515 | Z6: 2.698412933 | AA6: 12.77744984 | AB6: 8.372124557 | AC6: 0.6506337911 | AD6: 1.54300454 | AE6: 2.743053988 | AF6: 3.539004374 | AG6: 3.01796847 | AH6: 39.91490397 | AI6: 3.970853992 | AJ6: 0 | AK6: 0 | AL6: 0 | AM6: 0 | AN6: 0.07145511202 | AO6: 0.1307379303 | AP6: 0.2067852957 | AQ6: 0.130901125 | AR6: 7.783065333 | AS6: 30.00857158 | AT6: 2.402406108 | AU6: 3.883313439 | AV6: 3.539004374 | AW6: 2.743053988 | AX6: 1.54300454 | AY6: 39.91490397 | AZ6: 39.91490397 | BA6: 3.01796847 | BB6: 0 | BC6: 0 | BD6: 0.2331960626 | BE6: 0.2067852957 | BF6: 0.1307379303 | BG6: 0.07145511202 | BH6: 7.783065333 | BI6: 7.783065333 | BJ6: 0.1713895717 | BK6: 40.5392151 | BL6: 42.6571276 | BM6: 7.807826032 | BN6: 23.15953369 | BO6: 5.192125815 | BP6: 1.841881973 | BQ6: 0.1972715798 | BR6: 0.2942140297
A7: 2020 | B7: 8784 | C7: 10.0701073 | D7: 8.595545486 | E7: 9.554199791 | F7: 9.889932325 | G7: 10.66908134 | H7: 22.07987206 | I7: 11.16830992 | J7: 0.9953168018 | K7: 0.8142418775 | L7: 0.08640390989 | M7: 2.139878272 | N7: 1.132385487 | O7: 0.586799474 | P7: 0.0618701593 | Q7: 1.146372222 | R7: 0.1387935986 | S7: 0.19 | T7: 0.02481763366 | U7: 0.5957511204 | V7: 0.3995656815 | W7: 15.89101582 | X7: 1.04322976 | Y7: 0.08595545486 | Z7: 2.876118003 | AA7: 12.16369619 | AB7: 6.56700398 | AC7: 0.6821196177 | AD7: 1.549334482 | AE7: 2.708553102 | AF7: 3.627107104 | AG7: 3.00521704 | AH7: 33.72111796 | AI7: 3.731622495 | AJ7: 0 | AK7: 0 | AL7: 0 | AM7: 0 | AN7: 0.07193722631 | AO7: 0.1300815965 | AP7: 0.2210264162 | AQ7: 0.1301091166 | AR7: 6.699013656 | AS7: 26.67391681 | AT7: 2.610909315 | AU7: 4.064267376 | AV7: 3.627107104 | AW7: 2.708553102 | AX7: 1.549334482 | AY7: 33.72111796 | AZ7: 33.72111796 | BA7: 3.00521704 | BB7: 0 | BC7: 0 | BD7: 0.2576930488 | BE7: 0.2210264162 | BF7: 0.1300815965 | BG7: 0.07193722631 | BH7: 6.699013656 | BI7: 6.699013656 | BJ7: 0.1730134143 | BK7: 33.56319528 | BL7: 35.78947746 | BM7: 6.628340375 | BN7: 19.76385541 | BO7: 5.063589584 | BP7: 1.810855055 | BQ7: 0.203073431 | BR7: 0.3546146659
P9: =CELL("filename") -> D:\Dropbox\Gehlin-Spitler_collaboration\Studenthuset\studenthuset data detailed excel files\2021_update\20211208_Results\[BinResultsYear_V3.xlsm]BinResultsYear
A11: Year | B11: Clg (kW) | C11: Htg (kW) | D11: HP DHW Htg (kW) | G11: Year | H11: Clg (kWh) | I11: Htg (kWh) | J11: HP DHW Htg (kWh) | K11: Compressor (kWh) | L11: Loop CP (kWh) | M11: Internal CP (kWh) | N11: Kitchen Refrig (kWh) | O11: Net heat extraction (kWh) | P11: Net heat extraction (kWh/m) | Q11: Net heat extraction (W/m) | R11: Year | S11: Clg uncertainty (%) | T11: Htg uncertainty (%)
A12: 2016 | B12: =-G3 -> -12.69052087 | C12: =H3 -> 22.9084026 | D12: =L3 -> 0.1969520507 | G12: 2016 | H12: =$B3*B12 -> -111460.8448 | I12: =$B3*C12 -> 201204.5 | J12: 1729.829861 | K12: =H12/AU3 -> -29335.20692 | L12: =-B3*J3 -> -8905.649213 | M12: =-B3*D3 -> -83338.54 | N12: =-8760*2.5 -> -21900 | O12: =SUM(H12:M12) -> -30105.9111 | P12: =O12/(20*200) -> -7.526477775 | Q12: =P12*1000/8760 -> -0.8591869606 | R12: 2016 | S12: =O3/G3 -> 0.055 | T12: =N3/H3 -> 0.05051093778 | W12: =I12+J12 -> 202934.3299 | X12: =H12+K12+L12+M12+N12 -> -254940.241
A13: 2017 | B13: =-G4 -> -13.02624498 | C13: =H4 -> 22.62276585 | D13: =L4 -> 0.2105706455 | G13: 2017 | H13: =$B4*B13 -> -114109.906 | I13: 198175.4289 | J13: 1844.598854 | K13: =H13/AU4 -> -29714.0769 | L13: =-B4*J4 -> -8889.021356 | M13: =-B4*D4 -> -82154.97405 | N13: =-8760*2.5 -> -21900 | O13: =SUM(H13:M13) -> -34847.95059 | P13: =O13/(20*200) -> -8.711987647 | Q13: =P13*1000/8760 -> -0.9945191378 | R13: 2017 | S13: =O4/G4 -> 0.055 | T13: =N4/H4 -> 0.05103924147 | W13: =I13+J13 -> 200020.0277 | X13: =H13+K13+L13+M13+N13 -> -256767.9783 | AA13: =sum -> 
A14: 2018 | B14: -18.37945967 | C14: 24.46890724 | D14: 0.2379602539 | G14: 2018 | H14: =$B5*B14 -> -161004.0667 | I14: 214347.6274 | J14: 2084.531824 | K14: -42507.73373 | L14: -8630.895303 | M14: -87680.99998 | N14: -21900 | O14: -83391.53649 | P14: -20.84788412 | Q14: -2.379895448 | R14: 2018 | S14: 0.055 | T14: 0.05061339248 | W14: 216432.1593 | X14: -321723.6957
A15: 2019 | B15: -14.16303189 | C15: 24.19786873 | D15: 0.2363186041 | G15: 2019 | H15: =$B6*B15 -> -124068.1594 | I15: 211973.3301 | J15: 2070.150972 | K15: -31949.04592 | L15: -8897.015625 | M15: -85207.78868 | N15: -21900 | O15: -36078.52854 | P15: -9.019632134 | Q15: -1.029638371 | R15: 2019 | S15: 0.055 | T15: 0.05092224166 | W15: 214043.4811 | X15: -272022.0096 | Y15: =AVERAGE(Q12:Q16) -> -1.088684496
A16: 2020 | B16: -10.66908134 | C16: 22.07987206 | D16: 0.08640390989 | G16: 2020 | H16: =$B7*B16 -> -93717.21053 | I16: 193949.5961 | J16: 758.9719444 | K16: -23058.82017 | L16: -8742.862787 | M16: -75503.27155 | N16: -21900 | O16: -6313.596948 | P16: -1.578399237 | Q16: -0.1801825613 | R16: 2020 | S16: 0.055 | T16: 0.05128587177 | W16: 194708.5681 | X16: -222922.165
W17: =SUM(W12:W16) -> 1028138.566 | X17: =SUM(X12:X16) -> -1328376.09 | Z17: =X17/W17 -> -1.292020486
